[Event "Titled Tuesday Blitz March 22 Early 2022"]
[White "Siva Mahadevan"]
[Black "Bodnaruk, Anastasia"]
[WhiteFideId "25043153"]
[BlackFideId "4181751"]
[WhiteElo "2203"]
[BlackElo "2393"]
[Result "0-1"]
[Round "07"]
[TimeControl "180+1"]
[Date "2022.03.22"]
[WhiteClock "0:00:11"]
[BlackClock "0:00:02"]

1. e4 {[%clk 0:02:59]}  c5 {[%clk 0:02:59]} 2. Nf3 {[%clk 0:02:58]}  d6 {[%clk 0:02:59]} 3. d4 {[%clk 0:02:59]}  cxd4 {[%clk 0:02:59]} 4. Nxd4 {[%clk 0:03:00]}  Nf6 {[%clk 0:03:00]} 5. Nc3 {[%clk 0:03:00]}  a6 {[%clk 0:03:00]} 6. Bg5 {[%clk 0:03:01]}  Nbd7 {[%clk 0:03:00]} 7. Bc4 {[%clk 0:03:00]}  Qb6 {[%clk 0:02:58]} 8. O-O {[%clk 0:03:01]}  Qc5 {[%clk 0:02:47]} 9. Bd5 {[%clk 0:03:00]}  e6 {[%clk 0:02:41]} 10. Re1 {[%clk 0:02:59]}  Be7 {[%clk 0:02:30]} 11. Be3 {[%clk 0:02:54]}  Qa5 {[%clk 0:02:24]} 12. Bc4 {[%clk 0:02:31]}  O-O {[%clk 0:02:22]} 13. a3 {[%clk 0:02:30]}  Qc7 {[%clk 0:02:20]} 14. Ba2 {[%clk 0:02:28]}  Ne5 {[%clk 0:02:13]} 15. Qe2 {[%clk 0:02:24]}  b5 {[%clk 0:02:10]} 16. Rad1 {[%clk 0:02:24]}  Bd7 {[%clk 0:02:04]} 17. f4 {[%clk 0:02:17]}  Nc4 {[%clk 0:02:02]} 18. Bc1 {[%clk 0:02:17]}  Nxa3 {[%clk 0:01:39]} 19. e5 {[%clk 0:02:16]}  dxe5 {[%clk 0:01:34]} 20. fxe5 {[%clk 0:02:17]}  Ne8 {[%clk 0:01:31]} 21. Nd5 {[%clk 0:02:01]}  exd5 {[%clk 0:01:30]} 22. bxa3 {[%clk 0:02:02]}  Be6 {[%clk 0:01:22]} 23. Kh1 {[%clk 0:01:50]}  Kh8 {[%clk 0:01:11]} 24. Rf1 {[%clk 0:01:49]}  Rc8 {[%clk 0:01:02]} 25. Rd3 {[%clk 0:01:34]}  Qa7 {[%clk 0:00:52]} 26. Be3 {[%clk 0:01:23]}  Qb7 {[%clk 0:00:45]} 27. Qh5 {[%clk 0:01:17]}  g6 {[%clk 0:00:29]} 28. Qh6 {[%clk 0:01:15]}  Ng7 {[%clk 0:00:29]} 29. Bd2 {[%clk 0:01:03]}  Bd7 {[%clk 0:00:21]} 30. Nf3 {[%clk 0:00:44]}  Be6 {[%clk 0:00:16]} 31. Bg5 {[%clk 0:00:41]}  f6 {[%clk 0:00:14]} 32. exf6 {[%clk 0:00:38]}  Bxf6 {[%clk 0:00:15]} 33. Re1 {[%clk 0:00:30]}  Nf5 {[%clk 0:00:14]} 34. Bxf6+ {[%clk 0:00:27]}  Rxf6 {[%clk 0:00:14]} 35. Qg5 {[%clk 0:00:28]}  Qg7 {[%clk 0:00:12]} 36. Rd2 {[%clk 0:00:28]}  Rcf8 {[%clk 0:00:10]} 37. Bxd5 {[%clk 0:00:24]}  Bxd5 {[%clk 0:00:07]} 38. Rxd5 {[%clk 0:00:25]}  Qf7 {[%clk 0:00:06]} 39. Rde5 {[%clk 0:00:24]}  Qc7 {[%clk 0:00:06]} 40. R5e2 {[%clk 0:00:21]}  a5 {[%clk 0:00:05]} 41. Qd2 {[%clk 0:00:17]}  Qb6 {[%clk 0:00:03]} 42. Qc3 {[%clk 0:00:16]}  Qc6 {[%clk 0:00:03]} 43. Qb2 {[%clk 0:00:15]}  Kg8 {[%clk 0:00:02]} 44. Ne5 {[%clk 0:00:15]}  Qc5 {[%clk 0:00:02]} 45. Ng4 {[%clk 0:00:15]}  Ng3+ {[%clk 0:00:02]} 46. hxg3 {[%clk 0:00:12]}  Rf1+ {[%clk 0:00:02]} 47. Rxf1 {[%clk 0:00:10]}  Rxf1+ {[%clk 0:00:02]} 48. Kh2 {[%clk 0:00:11]}  Qh5# {[%clk 0:00:02]} 0-1


[Site "https://www.chess.com"]

[Event "Titled Tuesday Blitz March 22 Early 2022"]
[White "Skliarov, Viktor"]
[Black "Milanovic, Marko"]
[WhiteFideId "14106736"]
[BlackFideId "980129"]
[WhiteElo "2229"]
[BlackElo "2159"]
[Result "1-0"]
[Round "07"]
[TimeControl "180+1"]
[Date "2022.03.22"]
[WhiteClock "0:00:52"]
[BlackClock "0:01:24"]

1. e4 {[%clk 0:02:56]}  e5 {[%clk 0:02:58]} 2. Nc3 {[%clk 0:02:54]}  Nf6 {[%clk 0:02:57]} 3. Bc4 {[%clk 0:02:55]}  Nxe4 {[%clk 0:02:57]} 4. Qh5 {[%clk 0:02:55]}  Nd6 {[%clk 0:02:56]} 5. Bb3 {[%clk 0:02:55]}  Be7 {[%clk 0:02:56]} 6. Qxe5 {[%clk 0:02:55]}  O-O {[%clk 0:02:53]} 7. Nge2 {[%clk 0:02:56]}  Nc6 {[%clk 0:02:50]} 8. Qf4 {[%clk 0:02:56]}  Bf6 {[%clk 0:02:44]} 9. Nd5 {[%clk 0:02:56]}  Bg5 {[%clk 0:02:29]} 10. Qf3 {[%clk 0:02:52]}  Ne5 {[%clk 0:02:27]} 11. Qg3 {[%clk 0:02:50]}  Re8 {[%clk 0:02:25]} 12. h4 {[%clk 0:02:47]}  Bh6 {[%clk 0:02:24]} 13. d4 {[%clk 0:02:36]}  Nf5 {[%clk 0:02:18]} 14. Qc3 {[%clk 0:02:14]}  Nc6 {[%clk 0:02:10]} 15. Bxh6 {[%clk 0:01:55]}  gxh6 {[%clk 0:02:11]} 16. Rd1 {[%clk 0:01:35]}  d6 {[%clk 0:02:04]} 17. g4 {[%clk 0:01:27]}  Nfe7 {[%clk 0:02:02]} 18. Nf6+ {[%clk 0:01:26]}  Kh8 {[%clk 0:02:01]} 19. Nxe8 {[%clk 0:01:23]}  Qxe8 {[%clk 0:02:02]} 20. Qf3 {[%clk 0:01:17]}  d5 {[%clk 0:01:50]} 21. Kd2 {[%clk 0:01:16]}  Be6 {[%clk 0:01:44]} 22. Kc1 {[%clk 0:01:16]}  a5 {[%clk 0:01:43]} 23. Ba4 {[%clk 0:01:06]}  Qd7 {[%clk 0:01:39]} 24. Qf6+ {[%clk 0:00:59]}  Kg8 {[%clk 0:01:38]} 25. f3 {[%clk 0:01:00]}  Qd6 {[%clk 0:01:34]} 26. Nf4 {[%clk 0:00:55]}  b5 {[%clk 0:01:27]} 27. Nh5 {[%clk 0:00:53]}  Kf8 {[%clk 0:01:25]} 28. Qg7+ {[%clk 0:00:50]}  Ke8 {[%clk 0:01:25]} 29. Nf6+ {[%clk 0:00:51]}  Kd8 {[%clk 0:01:24]} 30. Qf8# {[%clk 0:00:52]} 1-0


[Site "https://www.chess.com"]

[Event "Titled Tuesday Blitz March 22 Early 2022"]
[White "Starozhilov, Leonid"]
[Black "Ronka, Erik"]
[WhiteFideId "14106752"]
[BlackFideId "505080"]
[WhiteElo "2414"]
[BlackElo "2264"]
[Result "1-0"]
[Round "07"]
[TimeControl "180+1"]
[Date "2022.03.22"]
[WhiteClock "0:02:13"]
[BlackClock "0:01:45"]

1. e4 {[%clk 0:03:00]}  c5 {[%clk 0:02:59]} 2. Nf3 {[%clk 0:03:00]}  e6 {[%clk 0:02:59]} 3. c4 {[%clk 0:03:00]}  Nc6 {[%clk 0:02:56]} 4. d4 {[%clk 0:03:00]}  cxd4 {[%clk 0:02:57]} 5. Nxd4 {[%clk 0:03:01]}  Nf6 {[%clk 0:02:57]} 6. Nc3 {[%clk 0:03:01]}  Bb4 {[%clk 0:02:57]} 7. Nxc6 {[%clk 0:03:01]}  dxc6 {[%clk 0:02:54]} 8. Qxd8+ {[%clk 0:03:01]}  Kxd8 {[%clk 0:02:55]} 9. e5 {[%clk 0:03:01]}  Nd7 {[%clk 0:02:52]} 10. Bf4 {[%clk 0:03:00]}  Ke7 {[%clk 0:02:48]} 11. O-O-O {[%clk 0:02:57]}  Bxc3 {[%clk 0:02:42]} 12. bxc3 {[%clk 0:02:58]}  h6 {[%clk 0:02:40]} 13. h4 {[%clk 0:02:57]}  Nc5 {[%clk 0:02:37]} 14. h5 {[%clk 0:02:50]}  Bd7 {[%clk 0:02:35]} 15. Rh4 {[%clk 0:02:47]}  Rhd8 {[%clk 0:02:16]} 16. Be3 {[%clk 0:02:37]}  b6 {[%clk 0:02:14]} 17. Rg4 {[%clk 0:02:37]}  Kf8 {[%clk 0:02:05]} 18. Rgd4 {[%clk 0:02:36]}  Ke7 {[%clk 0:02:04]} 19. g4 {[%clk 0:02:32]}  Na4 {[%clk 0:01:59]} 20. Kc2 {[%clk 0:02:24]}  Be8 {[%clk 0:01:58]} 21. Bg2 {[%clk 0:02:18]}  Rac8 {[%clk 0:01:48]} 22. g5 {[%clk 0:02:14]}  hxg5 {[%clk 0:01:45]} 23. Bxg5+ {[%clk 0:02:13]} 1-0


[Site "https://www.chess.com"]

[Event "Titled Tuesday Blitz March 22 Early 2022"]
[White "Sztokbant, Bernardo Vainzoff"]
[Black "Tay, Junior"]
[WhiteFideId "2115956"]
[BlackFideId "5800439"]
[WhiteElo "2237"]
[BlackElo "2216"]
[Result "0-1"]
[Round "07"]
[TimeControl "180+1"]
[Date "2022.03.22"]
[WhiteClock "0:00:01"]
[BlackClock "0:00:47"]

1. e4 {[%clk 0:03:00]}  c5 {[%clk 0:03:00]} 2. Nf3 {[%clk 0:03:00]}  d6 {[%clk 0:03:00]} 3. d4 {[%clk 0:03:00]}  cxd4 {[%clk 0:03:01]} 4. Qxd4 {[%clk 0:03:00]}  Nc6 {[%clk 0:02:57]} 5. Bb5 {[%clk 0:03:00]}  Bd7 {[%clk 0:02:58]} 6. Bxc6 {[%clk 0:03:00]}  Bxc6 {[%clk 0:02:59]} 7. Nc3 {[%clk 0:03:01]}  Nf6 {[%clk 0:02:59]} 8. O-O {[%clk 0:03:00]}  e6 {[%clk 0:02:58]} 9. Bg5 {[%clk 0:02:59]}  Be7 {[%clk 0:02:58]} 10. Rad1 {[%clk 0:02:57]}  O-O {[%clk 0:02:58]} 11. Rfe1 {[%clk 0:02:56]}  Qa5 {[%clk 0:02:57]} 12. Bh4 {[%clk 0:02:43]}  Rac8 {[%clk 0:02:54]} 13. Bg3 {[%clk 0:02:32]}  e5 {[%clk 0:02:52]} 14. Qd3 {[%clk 0:02:29]}  b5 {[%clk 0:02:51]} 15. a3 {[%clk 0:02:28]}  Qb6 {[%clk 0:02:41]} 16. Bh4 {[%clk 0:02:22]}  a5 {[%clk 0:02:40]} 17. Bxf6 {[%clk 0:02:17]}  Bxf6 {[%clk 0:02:41]} 18. Qxd6 {[%clk 0:01:51]}  Qb7 {[%clk 0:01:39]} 19. Nd5 {[%clk 0:01:27]}  Bxd5 {[%clk 0:01:37]} 20. Qxd5 {[%clk 0:01:19]}  Qb6 {[%clk 0:01:28]} 21. Qd3 {[%clk 0:01:02]}  b4 {[%clk 0:01:24]} 22. axb4 {[%clk 0:00:54]}  axb4 {[%clk 0:01:25]} 23. Qb3 {[%clk 0:00:46]}  Qc5 {[%clk 0:01:21]} 24. Rd2 {[%clk 0:00:42]}  h6 {[%clk 0:01:21]} 25. g3 {[%clk 0:00:41]}  Kh7 {[%clk 0:01:21]} 26. Kg2 {[%clk 0:00:42]}  Rc7 {[%clk 0:01:21]} 27. Ree2 {[%clk 0:00:36]}  Rfc8 {[%clk 0:01:21]} 28. Rd5 {[%clk 0:00:35]}  Qc4 {[%clk 0:01:18]} 29. Qxc4 {[%clk 0:00:32]}  Rxc4 {[%clk 0:01:19]} 30. Nxe5 {[%clk 0:00:28]}  Bxe5 {[%clk 0:01:18]} 31. Rxe5 {[%clk 0:00:29]}  Rxc2 {[%clk 0:01:19]} 32. Rxc2 {[%clk 0:00:20]}  Rxc2 {[%clk 0:01:20]} 33. Re7 {[%clk 0:00:18]}  f6 {[%clk 0:01:16]} 34. Rb7 {[%clk 0:00:16]}  Rxb2 {[%clk 0:01:16]} 35. Kf3 {[%clk 0:00:16]}  Kg6 {[%clk 0:01:15]} 36. Ke3 {[%clk 0:00:15]}  h5 {[%clk 0:01:14]} 37. h4 {[%clk 0:00:14]}  b3 {[%clk 0:01:11]} 38. f3 {[%clk 0:00:14]}  Rb1 {[%clk 0:01:09]} 39. Kf4 {[%clk 0:00:13]}  Rb2 {[%clk 0:01:07]} 40. Rb6 {[%clk 0:00:13]}  Kf7 {[%clk 0:01:05]} 41. Rb7+ {[%clk 0:00:13]}  Kg6 {[%clk 0:01:05]} 42. g4 {[%clk 0:00:13]}  hxg4 {[%clk 0:01:05]} 43. Kxg4 {[%clk 0:00:11]}  Rg2+ {[%clk 0:01:02]} 44. Kf4 {[%clk 0:00:11]}  b2 {[%clk 0:00:59]} 45. Ke3 {[%clk 0:00:09]}  Kh5 {[%clk 0:00:59]} 46. Kd3 {[%clk 0:00:05]}  Kxh4 {[%clk 0:00:59]} 47. Ke3 {[%clk 0:00:05]}  Rc2 {[%clk 0:00:55]} 48. Kd3 {[%clk 0:00:05]}  Rg2 {[%clk 0:00:54]} 49. Ke3 {[%clk 0:00:05]}  g5 {[%clk 0:00:54]} 50. Rh7+ {[%clk 0:00:04]}  Kg3 {[%clk 0:00:54]} 51. Rb7 {[%clk 0:00:04]}  Rf2 {[%clk 0:00:51]} 52. Kd4 {[%clk 0:00:05]}  Kxf3 {[%clk 0:00:49]} 53. Rb6 {[%clk 0:00:05]}  Kg3 {[%clk 0:00:48]} 54. Rb3+ {[%clk 0:00:04]}  Kg2 {[%clk 0:00:47]} 55. Kd5 {[%clk 0:00:02]}  g4 {[%clk 0:00:47]} 56. Ke6 {[%clk 0:00:02]}  g3 {[%clk 0:00:47]} 57. Rb8 {[%clk 0:00:02]}  Kg1 {[%clk 0:00:47]} 58. e5 {[%clk 0:00:02]}  fxe5 {[%clk 0:00:46]} 59. Rg8 {[%clk 0:00:01]}  g2 {[%clk 0:00:47]} 0-1


[Site "https://www.chess.com"]

[Event "Titled Tuesday Blitz March 22 Early 2022"]
[White "Tanenbaum, Zachary"]
[Black "Popadic, Dragan"]
[WhiteFideId "2060850"]
[BlackFideId "913650"]
[WhiteElo "2168"]
[BlackElo "2222"]
[Result "1-0"]
[Round "07"]
[TimeControl "180+1"]
[Date "2022.03.22"]
[WhiteClock "0:02:00"]
[BlackClock "0:02:10"]

1. e4 {[%clk 0:03:00]}  c5 {[%clk 0:02:59]} 2. Nf3 {[%clk 0:03:00]}  Nc6 {[%clk 0:02:59]} 3. Nc3 {[%clk 0:03:00]}  e5 {[%clk 0:02:58]} 4. Bc4 {[%clk 0:03:00]}  Be7 {[%clk 0:02:58]} 5. d3 {[%clk 0:03:00]}  Nf6 {[%clk 0:02:59]} 6. Ng5 {[%clk 0:03:00]}  O-O {[%clk 0:02:58]} 7. h4 {[%clk 0:03:00]}  h6 {[%clk 0:02:56]} 8. Nd5 {[%clk 0:02:58]}  Nxd5 {[%clk 0:02:49]} 9. Bxd5 {[%clk 0:02:59]}  Nd4 {[%clk 0:02:46]} 10. Qh5 {[%clk 0:02:48]}  Ne6 {[%clk 0:02:44]} 11. Nf3 {[%clk 0:02:25]}  d6 {[%clk 0:02:37]} 12. Bxh6 {[%clk 0:02:15]}  gxh6 {[%clk 0:02:35]} 13. Qxh6 {[%clk 0:02:16]}  f6 {[%clk 0:02:16]} 14. Qg6+ {[%clk 0:02:00]}  Kh8 {[%clk 0:02:10]} 15. Ng5 {[%clk 0:02:00]} 1-0


[Site "https://www.chess.com"]

[Event "Titled Tuesday Blitz March 22 Early 2022"]
[White "Vasquez Schroeder, Rodrigo"]
[Black "Tsydypov, Zhamsaran"]
[WhiteFideId "3400042"]
[BlackFideId "4108566"]
[WhiteElo "2561"]
[BlackElo "2614"]
[Result "1-0"]
[Round "07"]
[TimeControl "180+1"]
[Date "2022.03.22"]
[WhiteClock "0:01:44"]
[BlackClock "0:01:51"]

1. e4 {[%clk 0:03:00]}  c5 {[%clk 0:02:54]} 2. Nf3 {[%clk 0:03:00]}  e6 {[%clk 0:02:54]} 3. d4 {[%clk 0:03:00]}  cxd4 {[%clk 0:02:55]} 4. Nxd4 {[%clk 0:03:01]}  Nc6 {[%clk 0:02:55]} 5. Nb5 {[%clk 0:03:01]}  d6 {[%clk 0:02:55]} 6. c4 {[%clk 0:03:01]}  a6 {[%clk 0:02:54]} 7. N5c3 {[%clk 0:03:01]}  Nf6 {[%clk 0:02:55]} 8. Be2 {[%clk 0:03:02]}  Be7 {[%clk 0:02:55]} 9. O-O {[%clk 0:03:03]}  O-O {[%clk 0:02:56]} 10. Na3 {[%clk 0:03:03]}  b6 {[%clk 0:02:56]} 11. Be3 {[%clk 0:03:03]}  Bb7 {[%clk 0:02:57]} 12. Rc1 {[%clk 0:03:04]}  Rc8 {[%clk 0:02:57]} 13. Qd2 {[%clk 0:03:03]}  Nb4 {[%clk 0:02:55]} 14. f3 {[%clk 0:03:02]}  d5 {[%clk 0:02:55]} 15. cxd5 {[%clk 0:03:00]}  exd5 {[%clk 0:02:55]} 16. e5 {[%clk 0:02:59]}  Nd7 {[%clk 0:02:55]} 17. f4 {[%clk 0:02:58]}  Bc5 {[%clk 0:02:55]} 18. Rfd1 {[%clk 0:02:54]}  Qe7 {[%clk 0:02:52]} 19. Nc2 {[%clk 0:02:48]}  Nxc2 {[%clk 0:02:42]} 20. Rxc2 {[%clk 0:02:48]}  Rfd8 {[%clk 0:02:41]} 21. Bxc5 {[%clk 0:02:26]}  Nxc5 {[%clk 0:02:38]} 22. Bg4 {[%clk 0:02:16]}  Rc7 {[%clk 0:02:32]} 23. Qe3 {[%clk 0:02:14]}  g6 {[%clk 0:02:20]} 24. Rcd2 {[%clk 0:02:14]}  Qh4 {[%clk 0:02:07]} 25. Qg3 {[%clk 0:02:07]}  Qxg3 {[%clk 0:02:03]} 26. hxg3 {[%clk 0:02:07]}  b5 {[%clk 0:02:04]} 27. Bf3 {[%clk 0:02:04]}  d4 {[%clk 0:02:04]} 28. Rxd4 {[%clk 0:02:02]}  Rxd4 {[%clk 0:02:04]} 29. Rxd4 {[%clk 0:02:03]}  Ne6 {[%clk 0:02:04]} 30. Rd2 {[%clk 0:02:00]}  b4 {[%clk 0:02:02]} 31. Nd5 {[%clk 0:01:59]}  Bxd5 {[%clk 0:01:56]} 32. Bxd5 {[%clk 0:01:59]}  Rc1+ {[%clk 0:01:57]} 33. Kf2 {[%clk 0:01:58]}  Nc5 {[%clk 0:01:57]} 34. Ke3 {[%clk 0:01:57]}  a5 {[%clk 0:01:57]} 35. g4 {[%clk 0:01:56]}  a4 {[%clk 0:01:57]} 36. f5 {[%clk 0:01:53]}  g5 {[%clk 0:01:55]} 37. Kd4 {[%clk 0:01:48]}  h6 {[%clk 0:01:55]} 38. Bc4 {[%clk 0:01:48]}  Nd7 {[%clk 0:01:53]} 39. e6 {[%clk 0:01:46]}  Nf6 {[%clk 0:01:53]} 40. e7 {[%clk 0:01:44]}  Re1 {[%clk 0:01:51]} 41. Re2 {[%clk 0:01:44]}  Rd1+ {[%clk 0:01:51]} 42. Kc5 {[%clk 0:01:44]} 1-0


[Site "https://www.chess.com"]

[Event "Titled Tuesday Blitz March 22 Early 2022"]
[White "Vishnu, Prasanna. V"]
[Black "Tari, Aryan"]
[WhiteFideId "5030692"]
[BlackFideId "1510045"]
[WhiteElo "2510"]
[BlackElo "2567"]
[Result "0-1"]
[Round "07"]
[TimeControl "180+1"]
[Date "2022.03.22"]
[WhiteClock "0:01:40"]
[BlackClock "0:01:50"]

1. d4 {[%clk 0:03:00]}  d5 {[%clk 0:02:59]} 2. c4 {[%clk 0:03:01]}  e6 {[%clk 0:02:59]} 3. Nf3 {[%clk 0:03:01]}  Nf6 {[%clk 0:02:59]} 4. g3 {[%clk 0:03:02]}  Bd6 {[%clk 0:02:57]} 5. Bg2 {[%clk 0:02:58]}  O-O {[%clk 0:02:57]} 6. Nc3 {[%clk 0:02:58]}  h6 {[%clk 0:02:54]} 7. Qc2 {[%clk 0:02:56]}  Nc6 {[%clk 0:02:45]} 8. a3 {[%clk 0:02:53]}  dxc4 {[%clk 0:02:39]} 9. Nb5 {[%clk 0:02:29]}  Na5 {[%clk 0:02:34]} 10. Bd2 {[%clk 0:02:19]}  Bd7 {[%clk 0:02:28]} 11. a4 {[%clk 0:02:11]}  a6 {[%clk 0:02:15]} 12. Na3 {[%clk 0:01:51]}  Nb3 {[%clk 0:02:13]} 13. Ra2 {[%clk 0:01:51]}  b5 {[%clk 0:02:01]} 14. e4 {[%clk 0:01:51]}  Bc6 {[%clk 0:01:50]} 15. e5 {[%clk 0:01:41]}  Bxf3 {[%clk 0:01:50]} 16. Bxf3 {[%clk 0:01:40]}  Nxd4 {[%clk 0:01:50]} 0-1


[Site "https://www.chess.com"]

[Event "Titled Tuesday Blitz March 22 Early 2022"]
[White "Vogel, Roven"]
[Black "Svane, Rasmus"]
[WhiteFideId "12908088"]
[BlackFideId "4657101"]
[WhiteElo "2516"]
[BlackElo "2645"]
[Result "0-1"]
[Round "07"]
[TimeControl "180+1"]
[Date "2022.03.22"]
[WhiteClock "0:00:44"]
[BlackClock "0:00:02"]

1. d4 {[%clk 0:02:59]}  Nf6 {[%clk 0:02:59]} 2. c4 {[%clk 0:03:00]}  e6 {[%clk 0:02:59]} 3. Nf3 {[%clk 0:03:00]}  d5 {[%clk 0:02:58]} 4. Nc3 {[%clk 0:03:00]}  a6 {[%clk 0:02:58]} 5. cxd5 {[%clk 0:03:00]}  exd5 {[%clk 0:02:59]} 6. Bg5 {[%clk 0:03:01]}  Be6 {[%clk 0:02:59]} 7. e3 {[%clk 0:03:01]}  Nbd7 {[%clk 0:02:59]} 8. Bd3 {[%clk 0:03:02]}  Bd6 {[%clk 0:02:59]} 9. O-O {[%clk 0:03:01]}  c6 {[%clk 0:02:59]} 10. h3 {[%clk 0:03:01]}  Qc7 {[%clk 0:03:00]} 11. Qd2 {[%clk 0:03:00]}  O-O {[%clk 0:02:56]} 12. Bf4 {[%clk 0:02:58]}  Rfe8 {[%clk 0:02:57]} 13. Ng5 {[%clk 0:02:57]}  g6 {[%clk 0:02:55]} 14. Rac1 {[%clk 0:02:56]}  Nh5 {[%clk 0:02:54]} 15. Nxe6 {[%clk 0:02:50]}  Rxe6 {[%clk 0:02:51]} 16. Nxd5 {[%clk 0:02:49]}  Qd8 {[%clk 0:02:40]} 17. Bxd6 {[%clk 0:02:48]}  Rxd6 {[%clk 0:02:41]} 18. Nc3 {[%clk 0:02:48]}  Ndf6 {[%clk 0:02:32]} 19. Ne4 {[%clk 0:02:47]}  Nxe4 {[%clk 0:02:31]} 20. Bxe4 {[%clk 0:02:48]}  Nf6 {[%clk 0:02:29]} 21. Bf3 {[%clk 0:02:48]}  Qe7 {[%clk 0:02:24]} 22. Qa5 {[%clk 0:02:48]}  Rad8 {[%clk 0:02:15]} 23. Rc3 {[%clk 0:02:48]}  Ne4 {[%clk 0:02:11]} 24. Bxe4 {[%clk 0:02:40]}  Qxe4 {[%clk 0:02:12]} 25. Qb6 {[%clk 0:02:37]}  R8d7 {[%clk 0:02:10]} 26. Rc5 {[%clk 0:02:35]}  h5 {[%clk 0:02:01]} 27. Re5 {[%clk 0:02:34]}  Qh4 {[%clk 0:01:36]} 28. a4 {[%clk 0:02:22]}  g5 {[%clk 0:01:29]} 29. Qc5 {[%clk 0:02:17]}  Rd5 {[%clk 0:01:27]} 30. Rxd5 {[%clk 0:02:16]}  Rxd5 {[%clk 0:01:27]} 31. Qe7 {[%clk 0:02:17]}  Rf5 {[%clk 0:00:58]} 32. Qxb7 {[%clk 0:02:16]}  Rf6 {[%clk 0:00:56]} 33. Qb8+ {[%clk 0:02:13]}  Kg7 {[%clk 0:00:54]} 34. Qe5 {[%clk 0:02:13]}  g4 {[%clk 0:00:52]} 35. hxg4 {[%clk 0:01:23]}  hxg4 {[%clk 0:00:51]} 36. g3 {[%clk 0:01:23]}  Qh3 {[%clk 0:00:41]} 37. Qg5+ {[%clk 0:01:22]}  Rg6 {[%clk 0:00:40]} 38. Qh4 {[%clk 0:01:22]}  Qxh4 {[%clk 0:00:34]} 39. gxh4 {[%clk 0:01:23]}  Rh6 {[%clk 0:00:29]} 40. Kg2 {[%clk 0:01:23]}  Rxh4 {[%clk 0:00:29]} 41. Kg3 {[%clk 0:01:23]}  Rh8 {[%clk 0:00:30]} 42. Rc1 {[%clk 0:01:22]}  Rb8 {[%clk 0:00:20]} 43. Rxc6 {[%clk 0:01:21]}  Rxb2 {[%clk 0:00:21]} 44. Rxa6 {[%clk 0:01:21]}  f5 {[%clk 0:00:13]} 45. a5 {[%clk 0:01:04]}  Ra2 {[%clk 0:00:14]} 46. f3 {[%clk 0:01:02]}  gxf3 {[%clk 0:00:06]} 47. Kxf3 {[%clk 0:01:03]}  Ra3 {[%clk 0:00:05]} 48. Kf4 {[%clk 0:01:02]}  Kf7 {[%clk 0:00:05]} 49. Rc6 {[%clk 0:00:46]}  Rxa5 {[%clk 0:00:05]} 50. Rc5 {[%clk 0:00:46]}  Ra1 {[%clk 0:00:02]} 51. Rxf5+ {[%clk 0:00:46]}  Ke6 {[%clk 0:00:03]} 52. Ke4 {[%clk 0:00:44]}  Re1 {[%clk 0:00:02]} 53. Rh5 {[%clk 0:00:43]}  Rg1 {[%clk 0:00:01]} 54. Rh6+ {[%clk 0:00:43]}  Kd7 {[%clk 0:00:01]} 55. Ra6 {[%clk 0:00:44]}  Rg5 {[%clk 0:00:02]} 56. Kd3 {[%clk 0:00:44]} 0-1


[Site "https://www.chess.com"]

[Event "Titled Tuesday Blitz March 22 Early 2022"]
[White "Voit, Daria"]
[Black "Krzywda, Andrzej"]
[WhiteFideId "4182146"]
[BlackFideId "1114565"]
[WhiteElo "2323"]
[BlackElo "2098"]
[Result "0-1"]
[Round "07"]
[TimeControl "180+1"]
[Date "2022.03.22"]
[WhiteClock "0:00:49"]
[BlackClock "0:00:24"]

1. d4 {[%clk 0:03:00]}  Nf6 {[%clk 0:02:58]} 2. Bg5 {[%clk 0:03:00]}  d5 {[%clk 0:02:58]} 3. e3 {[%clk 0:02:59]}  e6 {[%clk 0:02:57]} 4. Bd3 {[%clk 0:02:56]}  Be7 {[%clk 0:02:57]} 5. c3 {[%clk 0:02:53]}  O-O {[%clk 0:02:57]} 6. h4 {[%clk 0:02:52]}  b6 {[%clk 0:02:54]} 7. h5 {[%clk 0:02:50]}  h6 {[%clk 0:02:52]} 8. Bf4 {[%clk 0:02:51]}  Ba6 {[%clk 0:02:49]} 9. Bc2 {[%clk 0:02:49]}  Ne4 {[%clk 0:02:39]} 10. Nd2 {[%clk 0:02:36]}  f5 {[%clk 0:02:34]} 11. Nxe4 {[%clk 0:02:21]}  fxe4 {[%clk 0:02:34]} 12. f3 {[%clk 0:02:17]}  Bg5 {[%clk 0:02:23]} 13. g3 {[%clk 0:02:15]}  Bxf4 {[%clk 0:02:16]} 14. gxf4 {[%clk 0:02:09]}  Nc6 {[%clk 0:02:01]} 15. fxe4 {[%clk 0:02:06]}  Ne7 {[%clk 0:02:01]} 16. e5 {[%clk 0:01:56]}  Nf5 {[%clk 0:01:57]} 17. Rh3 {[%clk 0:01:50]}  c5 {[%clk 0:01:43]} 18. Qg4 {[%clk 0:01:49]}  Rc8 {[%clk 0:01:38]} 19. O-O-O {[%clk 0:01:42]}  Qe7 {[%clk 0:01:23]} 20. Bxf5 {[%clk 0:01:32]}  exf5 {[%clk 0:01:14]} 21. Qg6 {[%clk 0:01:30]}  cxd4 {[%clk 0:01:11]} 22. Rxd4 {[%clk 0:01:25]}  Bc4 {[%clk 0:00:59]} 23. Kb1 {[%clk 0:01:25]}  Qd7 {[%clk 0:00:50]} 24. Rg3 {[%clk 0:01:22]}  Rc6 {[%clk 0:00:49]} 25. Nf3 {[%clk 0:01:10]}  Rxg6 {[%clk 0:00:47]} 26. Rxg6 {[%clk 0:01:10]}  Be2 {[%clk 0:00:39]} 27. e6 {[%clk 0:01:02]}  Qe7 {[%clk 0:00:37]} 28. Rxd5 {[%clk 0:00:58]}  Bxf3 {[%clk 0:00:36]} 29. Rd7 {[%clk 0:00:58]}  Be4+ {[%clk 0:00:35]} 30. Kc1 {[%clk 0:00:55]}  Qxd7 {[%clk 0:00:25]} 31. exd7 {[%clk 0:00:55]}  Rd8 {[%clk 0:00:26]} 32. Rd6 {[%clk 0:00:54]}  Kf7 {[%clk 0:00:26]} 33. b3 {[%clk 0:00:50]}  Ke7 {[%clk 0:00:25]} 34. Rg6 {[%clk 0:00:50]}  Rg8 {[%clk 0:00:25]} 35. c4 {[%clk 0:00:49]}  Kxd7 {[%clk 0:00:25]} 36. Kb2 {[%clk 0:00:49]}  Bf3 {[%clk 0:00:25]} 37. Kc3 {[%clk 0:00:49]}  Bxh5 {[%clk 0:00:24]} 0-1


[Site "https://www.chess.com"]